[Event "*** MasterClass Titled Tuesday Blitz"]
[Site "Chess.com"]
[Date "2017.07.04"]
[Round "6"]
[White "AndrewDGreen"]
[Black "MarshKnight"]
[Result "1/2-1/2"]
[WhiteElo "2168"]
[BlackElo "2139"]
[TimeControl "180+2"]
[EndTime "14:21:22 PDT"]
[Termination "Game drawn by agreement"]

1. d4 {[%clk 0:03:01.9]} 1... e6 {[%clk 0:00:59.8]} 2. Nf3 {[%clk 0:03:00.2]}
2... f5 {[%clk 0:00:59]} 3. c4 {[%clk 0:02:59.3]} 3... b6 {[%clk 0:01:00.1]} 4.
Nc3 {[%clk 0:02:58.7]} 4... Bb7 {[%clk 0:01:01.3]} 5. Qc2 {[%clk 0:02:54.7]}
5... Bb4 {[%clk 0:01:02.1]} 6. Bd2 {[%clk 0:02:54.2]} 6... Nf6 {[%clk
0:01:02.9]} 7. a3 {[%clk 0:02:49.7]} 7... Bxc3 {[%clk 0:01:03.5]} 8. Bxc3 {[%clk
0:02:50.4]} 8... O-O {[%clk 0:01:05.1]} 9. O-O-O {[%clk 0:02:43.9]} 9... Ne4
{[%clk 0:01:05]} 10. Be1 {[%clk 0:02:43.5]} 10... a5 {[%clk 0:01:03.2]} 11. e3
{[%clk 0:02:41.2]} 11... a4 {[%clk 0:01:03.9]} 12. Ne5 {[%clk 0:02:38.1]} 12...
d6 {[%clk 0:01:02]} 13. Nd3 {[%clk 0:02:37.4]} 13... Nc6 {[%clk 0:01:00.2]} 14.
f3 {[%clk 0:02:35.1]} 14... Nf6 {[%clk 0:01:01.1]} 15. h3 {[%clk 0:02:26.9]}
15... Qe8 {[%clk 0:01:02.1]} 16. g4 {[%clk 0:02:26.8]} 16... Na5 {[%clk
0:01:00.5]} 17. Be2 {[%clk 0:02:16.3]} 17... b5 {[%clk 0:00:56]} 18. cxb5 {[%clk
0:02:12.3]} 18... Nb3+ {[%clk 0:00:55.1]} 19. Kb1 {[%clk 0:02:12.2]} 19... Nd5
{[%clk 0:00:56.2]} 20. Bf2 {[%clk 0:02:06.6]} 20... Qxb5 {[%clk 0:00:52.6]} 21.
Nc5 {[%clk 0:01:59]} 21... Qb6 {[%clk 0:00:19.6]} 22. Nxe6 {[%clk 0:01:53.6]}
22... Rfe8 {[%clk 0:00:20.1]} 23. gxf5 {[%clk 0:01:52.4]} 23... c5 {[%clk
0:00:17.1]} 24. Rhg1 {[%clk 0:01:50.6]} 24... Rxe6 {[%clk 0:00:18]} 25. fxe6
{[%clk 0:01:50.5]} 25... cxd4 {[%clk 0:00:19.4]} 26. e4 {[%clk 0:01:45.3]} 26...
Rc8 {[%clk 0:00:20.7]} 27. Qd3 {[%clk 0:01:41.8]} 27... Nc3+ {[%clk 0:00:21.5]}
28. bxc3 {[%clk 0:01:15.7]} 28... Nd2+ {[%clk 0:00:22.3]} 29. Ka1 {[%clk
0:01:06.6]} 29... Rxc3 {[%clk 0:00:23.7]} 30. Qxd2 {[%clk 0:00:58]} 30... Rxa3+
{[%clk 0:00:23.7]} 31. Qa2 {[%clk 0:00:58.9]} 31... Rxa2+ {[%clk 0:00:24.7]} 32.
Kxa2 {[%clk 0:01:00.8]} 32... Qb3+ {[%clk 0:00:26]} 33. Ka1 {[%clk 0:01:01.1]}
33... Qc3+ {[%clk 0:00:24.2]} 34. Kb1 {[%clk 0:01:01.6]} 34... Qb3+ {[%clk
0:00:21.1]} 35. Ka1 {[%clk 0:01:02.8]} 35... Qa3+ {[%clk 0:00:21.7]} 36. Kb1
{[%clk 0:01:03.9]} 36... Qb3+ {[%clk 0:00:23.2]} 37. Ka1 {[%clk 0:01:04.9]}
37... Qc3+ {[%clk 0:00:24.1]} 1/2-1/2

[Event "*** MasterClass Titled Tuesday Blitz"]
[Site "Chess.com"]
[Date "2017.07.04"]
[Round "6"]
[White "TeukkaSalama"]
[Black "scrapnel"]
[Result "0-1"]
[WhiteElo "2075"]
[BlackElo "2535"]
[TimeControl "180+2"]
[EndTime "14:21:23 PDT"]
[Termination "scrapnel won by resignation"]

1. Nf3 {[%clk 0:03:01.9]} 1... d5 {[%clk 0:03:00.4]} 2. d4 {[%clk 0:03:01.8]}
2... Bf5 {[%clk 0:02:59.3]} 3. Bf4 {[%clk 0:03:00.2]} 3... e6 {[%clk 0:02:57.8]}
4. e3 {[%clk 0:03:00.6]} 4... Nf6 {[%clk 0:02:57.8]} 5. Bd3 {[%clk 0:03:00.6]}
5... Bg6 {[%clk 0:02:55]} 6. O-O {[%clk 0:02:54.7]} 6... Be7 {[%clk 0:02:55.2]}
7. c4 {[%clk 0:02:52.6]} 7... O-O {[%clk 0:02:52.2]} 8. Nc3 {[%clk 0:02:53]}
8... dxc4 {[%clk 0:02:51.9]} 9. Bxc4 {[%clk 0:02:52.8]} 9... a6 {[%clk
0:02:52.6]} 10. a4 {[%clk 0:02:51.2]} 10... Nc6 {[%clk 0:02:49.6]} 11. h3 {[%clk
0:02:41]} 11... Nb4 {[%clk 0:02:39.6]} 12. Qe2 {[%clk 0:02:34.8]} 12... c5
{[%clk 0:02:38]} 13. dxc5 {[%clk 0:02:24.9]} 13... Bxc5 {[%clk 0:02:37.9]} 14.
Rfd1 {[%clk 0:02:25.3]} 14... Qe7 {[%clk 0:02:30]} 15. Rac1 {[%clk 0:02:16]}
15... Rfd8 {[%clk 0:02:19.4]} 16. Ne5 {[%clk 0:02:02.1]} 16... Rac8 {[%clk
0:02:08.6]} 17. Nxg6 {[%clk 0:01:57]} 17... hxg6 {[%clk 0:02:09.3]} 18. Bg5
{[%clk 0:01:47.8]} 18... Qe8 {[%clk 0:02:02.2]} 19. Bxf6 {[%clk 0:01:47.1]}
19... gxf6 {[%clk 0:02:02.6]} 20. Ne4 {[%clk 0:01:45.4]} 20... Be7 {[%clk
0:02:03.4]} 21. Bb3 {[%clk 0:01:14.8]} 21... f5 {[%clk 0:01:57.9]} 22. Rxc8
{[%clk 0:00:51.6]} 22... Rxc8 {[%clk 0:01:58.4]} 23. Nc3 {[%clk 0:00:52.2]}
23... Bf6 {[%clk 0:01:57.2]} 24. Qd2 {[%clk 0:00:34.1]} 24... Rd8 {[%clk
0:01:51.6]} 25. Qe2 {[%clk 0:00:30]} 25... Bxc3 {[%clk 0:01:50.3]} 26. bxc3
{[%clk 0:00:29.6]} 26... Nc6 {[%clk 0:01:49.2]} 27. Rxd8 {[%clk 0:00:24.4]}
27... Qxd8 {[%clk 0:01:49.7]} 28. Qc4 {[%clk 0:00:22.7]} 28... Qd2 {[%clk
0:01:45.1]} 29. g3 {[%clk 0:00:18.7]} 29... Kg7 {[%clk 0:01:39.4]} 30. Kg2
{[%clk 0:00:19.4]} 30... Qb2 {[%clk 0:01:35.7]} 31. h4 {[%clk 0:00:19.3]} 31...
Qd2 {[%clk 0:01:29.7]} 32. Qc5 {[%clk 0:00:16.8]} 32... Qb2 {[%clk 0:01:15.7]}
33. Bc4 {[%clk 0:00:15.9]} 33... Qxc3 {[%clk 0:01:12]} 34. Kh2 {[%clk
0:00:11.3]} 34... Ne5 {[%clk 0:01:09.4]} 35. Qd4 {[%clk 0:00:07.1]} 35... Qxd4
{[%clk 0:01:09.8]} 36. exd4 {[%clk 0:00:08.7]} 36... Nxc4 {[%clk 0:01:11.2]} 0-1

[Event "*** MasterClass Titled Tuesday Blitz"]
[Site "Chess.com"]
[Date "2017.07.04"]
[Round "6"]
[White "Iball95"]
[Black "blitzcopter"]
[Result "1-0"]
[WhiteElo "2516"]
[BlackElo "2039"]
[TimeControl "180+2"]
[EndTime "14:21:25 PDT"]
[Termination "Iball95 won by resignation"]

1. d4 {[%clk 0:03:01.9]} 1... Nf6 {[%clk 0:02:57.2]} 2. c4 {[%clk 0:03:01]} 2...
e6 {[%clk 0:02:57.5]} 3. Nf3 {[%clk 0:02:58.6]} 3... Bb4+ {[%clk 0:02:56.5]} 4.
Bd2 {[%clk 0:02:55.5]} 4... Qe7 {[%clk 0:02:55.3]} 5. Nc3 {[%clk 0:02:54.3]}
5... Bxc3 {[%clk 0:02:47.6]} 6. Bxc3 {[%clk 0:02:56.2]} 6... Ne4 {[%clk
0:02:46.9]} 7. Qc2 {[%clk 0:02:53.1]} 7... Nxc3 {[%clk 0:02:23.6]} 8. Qxc3
{[%clk 0:02:55]} 8... Nc6 {[%clk 0:02:24.2]} 9. e3 {[%clk 0:02:54.1]} 9... O-O
{[%clk 0:02:18]} 10. Bd3 {[%clk 0:02:52.6]} 10... Qb4 {[%clk 0:02:17.5]} 11.
Qxb4 {[%clk 0:02:50.1]} 11... Nxb4 {[%clk 0:02:19.4]} 12. Kd2 {[%clk 0:02:51]}
12... Nxd3 {[%clk 0:02:20]} 13. Kxd3 {[%clk 0:02:52.9]} 13... d6 {[%clk
0:02:21.5]} 14. b4 {[%clk 0:02:50.8]} 14... Re8 {[%clk 0:02:15.3]} 15. a4 {[%clk
0:02:50.4]} 15... e5 {[%clk 0:02:14.3]} 16. Kc3 {[%clk 0:02:51.5]} 16... Bg4
{[%clk 0:02:13.8]} 17. dxe5 {[%clk 0:02:47.5]} 17... dxe5 {[%clk 0:02:15.7]} 18.
Nd2 {[%clk 0:02:47.7]} 18... Rad8 {[%clk 0:02:09.4]} 19. Ne4 {[%clk 0:02:47.1]}
19... Bf5 {[%clk 0:02:09.7]} 20. f3 {[%clk 0:02:47.1]} 20... Bxe4 {[%clk
0:02:06.7]} 21. fxe4 {[%clk 0:02:49]} 21... Rd7 {[%clk 0:01:57.5]} 22. Rad1
{[%clk 0:02:49.3]} 22... Red8 {[%clk 0:01:58.2]} 23. Rd5 {[%clk 0:02:50.1]}
23... c6 {[%clk 0:01:50.5]} 24. Rxd7 {[%clk 0:02:50.1]} 24... Rxd7 {[%clk
0:01:50.9]} 25. c5 {[%clk 0:02:47.8]} 25... Kf8 {[%clk 0:01:49.5]} 26. b5 {[%clk
0:02:48.8]} 26... Ke7 {[%clk 0:01:44.2]} 27. Rb1 {[%clk 0:02:44.6]} 27... Kd8
{[%clk 0:01:17.6]} 28. bxc6 {[%clk 0:02:31.9]} 28... bxc6 {[%clk 0:01:17.6]} 29.
Rb8+ {[%clk 0:02:32.8]} 29... Kc7 {[%clk 0:01:16.8]} 30. Rh8 {[%clk 0:02:29.8]}
30... h6 {[%clk 0:01:17.1]} 31. Rh7 {[%clk 0:02:30.2]} 31... f6 {[%clk
0:01:15.5]} 32. h4 {[%clk 0:02:24.6]} 32... Kd8 {[%clk 0:01:01.1]} 33. Rh8+
{[%clk 0:02:24.6]} 33... Kc7 {[%clk 0:01:02.1]} 34. Rg8 {[%clk 0:02:25.3]} 34...
Re7 {[%clk 0:00:59.9]} 35. Kb4 {[%clk 0:02:22.9]} 35... Kb7 {[%clk 0:01:00.2]}
36. Ka5 {[%clk 0:02:23.3]} 36... Rd7 {[%clk 0:01:01.5]} 37. g4 {[%clk
0:02:21.5]} 37... Re7 {[%clk 0:01:01.8]} 38. Kb4 {[%clk 0:02:22]} 38... Rd7
{[%clk 0:01:00.8]} 39. Kc4 {[%clk 0:02:23]} 39... Re7 {[%clk 0:00:51.5]} 40. Rd8
{[%clk 0:02:23.9]} 40... Ka6 {[%clk 0:00:50.8]} 41. Rc8 {[%clk 0:02:13.5]} 41...
Kb7 {[%clk 0:00:51]} 42. Rd8 {[%clk 0:02:13.9]} 42... Kc7 {[%clk 0:00:51.7]} 43.
Rd6 {[%clk 0:02:12.2]} 43... Rd7 {[%clk 0:00:49]} 44. Re6 {[%clk 0:02:13]} 44...
Kb7 {[%clk 0:00:49.2]} 45. g5 {[%clk 0:02:12.8]} 45... hxg5 {[%clk 0:00:49.3]}
46. hxg5 {[%clk 0:02:14.7]} 46... Rf7 {[%clk 0:00:50.4]} 47. g6 {[%clk
0:02:11.1]} 47... Rd7 {[%clk 0:00:50.8]} 48. Re8 {[%clk 0:02:11.9]} 48... Kc7
{[%clk 0:00:51.2]} 49. Rf8 {[%clk 0:02:12.6]} 49... Re7 {[%clk 0:00:52.6]} 50.
Kb4 {[%clk 0:02:09.3]} 50... Kd7 {[%clk 0:00:45.7]} 51. Ka5 {[%clk 0:02:06.6]}
51... Ke6 {[%clk 0:00:45.9]} 52. Rd8 {[%clk 0:02:02.6]} 52... Rc7 {[%clk
0:00:40.8]} 53. Ka6 {[%clk 0:02:03.2]} 53... f5 {[%clk 0:00:41.6]} 54. Rd6+
{[%clk 0:02:03.1]} 54... Ke7 {[%clk 0:00:42.8]} 55. exf5 {[%clk 0:02:04.1]}
55... Rc8 {[%clk 0:00:43.7]} 56. Kxa7 {[%clk 0:01:58.5]} 56... Rc7+ {[%clk
0:00:43.9]} 57. Kb6 {[%clk 0:01:59.1]} 57... Rc8 {[%clk 0:00:44.9]} 58. a5
{[%clk 0:01:59.8]} 58... Ra8 {[%clk 0:00:46.8]} 1-0

[Event "*** MasterClass Titled Tuesday Blitz"]
[Site "Chess.com"]
[Date "2017.07.04"]
[Round "6"]
[White "grobesk"]
[Black "Bad4life"]
[Result "0-1"]
[WhiteElo "2211"]
[BlackElo "2282"]
[TimeControl "180+2"]
[EndTime "14:21:29 PDT"]
[Termination "Bad4life won on time"]

1. e4 {[%clk 0:03:01.9]} 1... c5 {[%clk 0:03:00.9]} 2. d4 {[%clk 0:02:59.4]}
2... cxd4 {[%clk 0:03:01.6]} 3. c3 {[%clk 0:03:00.8]} 3... Qa5 {[%clk
0:03:02.9]} 4. Nf3 {[%clk 0:02:55.5]} 4... Nc6 {[%clk 0:03:03.5]} 5. Nxd4 {[%clk
0:02:52.8]} 5... Nf6 {[%clk 0:03:03.1]} 6. Nxc6 {[%clk 0:02:47.2]} 6... bxc6
{[%clk 0:03:02]} 7. Bd3 {[%clk 0:02:46.9]} 7... e5 {[%clk 0:03:00.6]} 8. O-O
{[%clk 0:02:46.4]} 8... Be7 {[%clk 0:02:57.9]} 9. c4 {[%clk 0:02:45.7]} 9... O-O
{[%clk 0:02:58.3]} 10. Nc3 {[%clk 0:02:46.1]} 10... Rb8 {[%clk 0:02:58.8]} 11.
Rb1 {[%clk 0:02:20.3]} 11... h6 {[%clk 0:02:54.5]} 12. Bd2 {[%clk 0:02:18.7]}
12... Qd8 {[%clk 0:02:50.6]} 13. f4 {[%clk 0:02:03.2]} 13... exf4 {[%clk
0:02:38.7]} 14. Bxf4 {[%clk 0:02:03.3]} 14... d6 {[%clk 0:02:40.2]} 15. h3
{[%clk 0:01:35.3]} 15... Be6 {[%clk 0:02:36.9]} 16. Qa4 {[%clk 0:01:05.7]} 16...
Nd7 {[%clk 0:02:21.6]} 17. Be2 {[%clk 0:00:40.5]} 17... Qc8 {[%clk 0:01:58.4]}
18. Kh1 {[%clk 0:00:34.3]} 18... Nc5 {[%clk 0:01:44.3]} 19. Qc2 {[%clk 0:00:29]}
19... a5 {[%clk 0:01:41.1]} 20. b3 {[%clk 0:00:18.7]} 20... Rd8 {[%clk
0:01:38.1]} 21. Rbd1 {[%clk 0:00:16.1]} 21... Na6 {[%clk 0:01:30.6]} 22. Rd2
{[%clk 0:00:15.9]} 22... Nb4 {[%clk 0:01:31.7]} 23. Qd1 {[%clk 0:00:16]} 23...
Bf6 {[%clk 0:01:25.9]} 24. Na4 {[%clk 0:00:16.6]} 24... Be5 {[%clk 0:01:26.2]}
25. Bg4 {[%clk 0:00:05.8]} 25... Bxf4 {[%clk 0:01:01.3]} 26. Rxf4 {[%clk
0:00:05.4]} 26... Qc7 {[%clk 0:01:02.6]} 27. Rdf2 {[%clk 0:00:03.3]} 27... Rf8
{[%clk 0:00:55.5]} 28. Bxe6 {[%clk 0:00:03.7]} 28... fxe6 {[%clk 0:00:57.4]} 29.
Qf3 {[%clk 0:00:04.5]} 29... Qe7 {[%clk 0:00:53.3]} 0-1

[Event "*** MasterClass Titled Tuesday Blitz"]
[Site "Chess.com"]
[Date "2017.07.04"]
[Round "6"]
[White "gena217"]
[Black "Muisback26"]
[Result "1-0"]
[WhiteElo "2639"]
[BlackElo "2580"]
[TimeControl "180+2"]
[EndTime "14:21:31 PDT"]
[Termination "gena217 won on time"]

1. e4 {[%clk 0:03:01.8]} 1... c5 {[%clk 0:03:00.1]} 2. Nf3 {[%clk 0:03:01.2]}
2... Nc6 {[%clk 0:03:01]} 3. Bb5 {[%clk 0:03:01.6]} 3... g6 {[%clk 0:03:00.2]}
4. Bxc6 {[%clk 0:03:01.4]} 4... bxc6 {[%clk 0:03:02.1]} 5. O-O {[%clk
0:03:01.5]} 5... Bg7 {[%clk 0:03:02.8]} 6. Re1 {[%clk 0:03:03]} 6... Nh6 {[%clk
0:03:03.3]} 7. c3 {[%clk 0:03:03.4]} 7... O-O {[%clk 0:03:02.8]} 8. d4 {[%clk
0:03:04]} 8... cxd4 {[%clk 0:03:03.2]} 9. cxd4 {[%clk 0:03:05.9]} 9... d5 {[%clk
0:03:04.4]} 10. e5 {[%clk 0:02:55.5]} 10... f6 {[%clk 0:03:05.1]} 11. h3 {[%clk
0:02:55.3]} 11... Nf7 {[%clk 0:03:03.1]} 12. Nc3 {[%clk 0:02:47.8]} 12... Bf5
{[%clk 0:03:02]} 13. Bf4 {[%clk 0:02:46.9]} 13... g5 {[%clk 0:03:00.4]} 14. Bg3
{[%clk 0:02:47]} 14... Bg6 {[%clk 0:02:34.8]} 15. Rc1 {[%clk 0:02:44.7]} 15...
Bh5 {[%clk 0:02:34.9]} 16. Na4 {[%clk 0:02:36.4]} 16... fxe5 {[%clk 0:02:33]}
17. dxe5 {[%clk 0:02:38.3]} 17... Bxf3 {[%clk 0:02:17.6]} 18. Qxf3 {[%clk
0:02:12]} 18... Nxe5 {[%clk 0:02:16.9]} 19. Qd1 {[%clk 0:02:10.9]} 19... Ng6
{[%clk 0:01:48.6]} 20. Rxc6 {[%clk 0:02:10]} 20... e5 {[%clk 0:01:48.2]} 21. Nc3
{[%clk 0:02:09.8]} 21... d4 {[%clk 0:01:45.1]} 22. Ne4 {[%clk 0:02:09.8]} 22...
Rb8 {[%clk 0:01:43.7]} 23. b3 {[%clk 0:02:10]} 23... Rb6 {[%clk 0:01:31.2]} 24.
Rxb6 {[%clk 0:02:07.7]} 24... axb6 {[%clk 0:01:30.9]} 25. Qh5 {[%clk 0:02:07.4]}
25... Bf6 {[%clk 0:01:18.3]} 26. Rc1 {[%clk 0:02:07.2]} 26... Kg7 {[%clk
0:00:50.5]} 27. Rc6 {[%clk 0:02:04.4]} 27... Qd5 {[%clk 0:00:45.9]} 28. Rc7+
{[%clk 0:01:41.3]} 28... Be7 {[%clk 0:00:45.5]} 29. Nxg5 {[%clk 0:01:34.8]}
29... h6 {[%clk 0:00:46.1]} 30. Nf3 {[%clk 0:01:31.6]} 30... Kf6 {[%clk
0:00:16.5]} 31. Qxh6 {[%clk 0:01:27.8]} 31... e4 {[%clk 0:00:16]} 32. Bh4+
{[%clk 0:01:26]} 32... Kf5 {[%clk 0:00:15.8]} 33. Qh5+ {[%clk 0:01:16.4]} 1-0

[Event "*** MasterClass Titled Tuesday Blitz"]
[Site "Chess.com"]
[Date "2017.07.04"]
[Round "6"]
[White "Aguiar94"]
[Black "Andrjywa"]
[Result "0-1"]
[WhiteElo "2398"]
[BlackElo "2308"]
[TimeControl "180+2"]
[EndTime "14:22:00 PDT"]
[Termination "Andrjywa won by resignation"]

1. e4 {[%clk 0:03:01.9]} 1... c5 {[%clk 0:02:58.8]} 2. Nf3 {[%clk 0:03:02.5]}
2... e6 {[%clk 0:02:59.5]} 3. d4 {[%clk 0:03:03.7]} 3... cxd4 {[%clk 0:03:00.8]}
4. Nxd4 {[%clk 0:03:05.6]} 4... a6 {[%clk 0:02:59.1]} 5. Bd3 {[%clk 0:03:06.8]}
5... Nc6 {[%clk 0:02:56.8]} 6. Nxc6 {[%clk 0:03:08]} 6... dxc6 {[%clk
0:02:56.3]} 7. O-O {[%clk 0:03:05.5]} 7... e5 {[%clk 0:02:55.9]} 8. Nd2 {[%clk
0:03:03.5]} 8... Nf6 {[%clk 0:02:54.9]} 9. b3 {[%clk 0:03:00.3]} 9... Bc5 {[%clk
0:02:53.7]} 10. Bb2 {[%clk 0:02:56.7]} 10... Bd4 {[%clk 0:02:53.5]} 11. Bxd4
{[%clk 0:02:43.5]} 11... Qxd4 {[%clk 0:02:54.2]} 12. Nf3 {[%clk 0:02:43]} 12...
Qc5 {[%clk 0:02:53.3]} 13. Nh4 {[%clk 0:02:42.5]} 13... O-O {[%clk 0:02:52.4]}
14. Qf3 {[%clk 0:02:42.9]} 14... Bg4 {[%clk 0:02:40.1]} 15. Qg3 {[%clk
0:02:42.2]} 15... g6 {[%clk 0:02:35.6]} 16. Rae1 {[%clk 0:02:36.7]} 16... Kg7
{[%clk 0:02:27.4]} 17. Kh1 {[%clk 0:02:27.8]} 17... Rfe8 {[%clk 0:02:10.8]} 18.
f4 {[%clk 0:02:22.2]} 18... exf4 {[%clk 0:02:09.5]} 19. Qxf4 {[%clk 0:02:21.7]}
19... Qe5 {[%clk 0:02:08.1]} 20. Qf2 {[%clk 0:02:09.7]} 20... Rad8 {[%clk
0:02:06.1]} 21. h3 {[%clk 0:01:58.3]} 21... Bc8 {[%clk 0:02:00.7]} 22. Nf3
{[%clk 0:01:59.2]} 22... Qe7 {[%clk 0:01:58.8]} 23. e5 {[%clk 0:01:56.1]} 23...
Nh5 {[%clk 0:01:51.4]} 24. Nd2 {[%clk 0:01:36.7]} 24... Rf8 {[%clk 0:01:39.7]}
25. Nc4 {[%clk 0:01:23.6]} 25... Qg5 {[%clk 0:01:37.5]} 26. Kh2 {[%clk
0:01:21.7]} 26... Kg8 {[%clk 0:01:20.4]} 27. Nd6 {[%clk 0:01:10.6]} 27... Be6
{[%clk 0:01:20.5]} 28. Qc5 {[%clk 0:01:04.1]} 28... f6 {[%clk 0:01:19.1]} 29.
Qc3 {[%clk 0:00:51]} 29... Qg3+ {[%clk 0:01:05]} 30. Kh1 {[%clk 0:00:48.3]}
30... fxe5 {[%clk 0:01:05]} 31. Rxf8+ {[%clk 0:00:35.4]} 31... Kxf8 {[%clk
0:01:05.2]} 32. Ne4 {[%clk 0:00:28.6]} 32... Qh4 {[%clk 0:01:05.2]} 33. Rf1+
{[%clk 0:00:24.8]} 33... Kg8 {[%clk 0:01:04.3]} 34. Qxe5 {[%clk 0:00:25.9]}
34... Bf7 {[%clk 0:00:55.2]} 35. Bc4 {[%clk 0:00:21.5]} 35... Bxc4 {[%clk
0:00:54.8]} 36. bxc4 {[%clk 0:00:23.4]} 36... Qxe4 {[%clk 0:00:55.5]} 0-1

[Event "*** MasterClass Titled Tuesday Blitz"]
[Site "Chess.com"]
[Date "2017.07.04"]
[Round "6"]
[White "GMKrikor"]
[Black "Winehouse83"]
[Result "1-0"]
[WhiteElo "2462"]
[BlackElo "2294"]
[TimeControl "180+2"]
[EndTime "14:22:02 PDT"]
[Termination "GMKrikor won by resignation"]

1. e4 {[%clk 0:03:01.9]} 1... e5 {[%clk 0:02:59.8]} 2. Nf3 {[%clk 0:03:02.9]}
2... Nc6 {[%clk 0:03:00.8]} 3. Bb5 {[%clk 0:03:02.9]} 3... a6 {[%clk 0:03:01.8]}
4. Ba4 {[%clk 0:03:04.3]} 4... Nf6 {[%clk 0:03:01.6]} 5. O-O {[%clk 0:03:05.4]}
5... b5 {[%clk 0:03:02.3]} 6. Bb3 {[%clk 0:03:06.3]} 6... Bc5 {[%clk 0:03:04.2]}
7. c3 {[%clk 0:02:47]} 7... d6 {[%clk 0:03:04.6]} 8. a4 {[%clk 0:02:46]} 8...
Rb8 {[%clk 0:03:04.1]} 9. d3 {[%clk 0:02:38.9]} 9... h6 {[%clk 0:03:01.2]} 10.
Nbd2 {[%clk 0:02:39.6]} 10... O-O {[%clk 0:03:00.9]} 11. h3 {[%clk 0:02:26.4]}
11... Nh5 {[%clk 0:02:48.4]} 12. Re1 {[%clk 0:02:23]} 12... Nf4 {[%clk
0:02:47.1]} 13. Nf1 {[%clk 0:02:21.1]} 13... Bxh3 {[%clk 0:02:43.4]} 14. Bxf4
{[%clk 0:02:14.9]} 14... Bxg2 {[%clk 0:02:40.1]} 15. Kxg2 {[%clk 0:02:12.9]}
15... exf4 {[%clk 0:02:40.6]} 16. d4 {[%clk 0:02:14.4]} 16... Bb6 {[%clk
0:02:27.8]} 17. axb5 {[%clk 0:02:15.5]} 17... axb5 {[%clk 0:02:28.1]} 18. N1h2
{[%clk 0:02:06]} 18... b4 {[%clk 0:02:19]} 19. e5 {[%clk 0:01:41.9]} 19... dxe5
{[%clk 0:02:15]} 20. Nxe5 {[%clk 0:01:42.2]} 20... Nxe5 {[%clk 0:02:13.7]} 21.
Rxe5 {[%clk 0:01:42.8]} 21... bxc3 {[%clk 0:02:12.5]} 22. bxc3 {[%clk
0:01:44.2]} 22... c6 {[%clk 0:01:51.3]} 23. Bc4 {[%clk 0:01:19.6]} 23... f3+
{[%clk 0:01:48.3]} 24. Qxf3 {[%clk 0:01:09.9]} 24... Bc7 {[%clk 0:01:49.2]} 25.
Rf5 {[%clk 0:01:02]} 25... Qh4 {[%clk 0:01:40.6]} 26. Nf1 {[%clk 0:00:46.2]}
26... Qe7 {[%clk 0:01:17.2]} 27. Ra7 {[%clk 0:00:41.4]} 27... Kh8 {[%clk
0:01:04.1]} 28. Qxc6 {[%clk 0:00:28.4]} 28... Rbc8 {[%clk 0:00:46.3]} 29. Qf3
{[%clk 0:00:29.2]} 29... Qd6 {[%clk 0:00:38.7]} 30. Ng3 {[%clk 0:00:26.7]} 30...
Bb6 {[%clk 0:00:36.5]} 31. Raxf7 {[%clk 0:00:26.9]} 31... Rxf7 {[%clk 0:00:34]}
32. Bxf7 {[%clk 0:00:27.4]} 32... Ba5 {[%clk 0:00:31.9]} 33. Bh5 {[%clk
0:00:15.1]} 33... Qe7 {[%clk 0:00:24.7]} 34. Rxa5 {[%clk 0:00:12]} 34... Qc7
{[%clk 0:00:24.9]} 35. Rc5 {[%clk 0:00:11.9]} 35... Qd7 {[%clk 0:00:26.8]} 36.
Bg4 {[%clk 0:00:11.8]} 1-0

[Event "*** MasterClass Titled Tuesday Blitz"]
[Site "Chess.com"]
[Date "2017.07.04"]
[Round "6"]
[White "hypert"]
[Black "aspired"]
[Result "0-1"]
[WhiteElo "2338"]
[BlackElo "2526"]
[TimeControl "180+2"]
[EndTime "14:22:05 PDT"]
[Termination "aspired won by resignation"]

1. e4 {[%clk 0:03:01.9]} 1... e5 {[%clk 0:03:00.1]} 2. Nf3 {[%clk 0:03:03]} 2...
Nc6 {[%clk 0:03:01.7]} 3. Nc3 {[%clk 0:03:04.5]} 3... Nf6 {[%clk 0:03:01.8]} 4.
d4 {[%clk 0:03:05.9]} 4... exd4 {[%clk 0:03:02.4]} 5. Nxd4 {[%clk 0:03:07.8]}
5... Bb4 {[%clk 0:03:03.2]} 6. Nxc6 {[%clk 0:03:08.3]} 6... bxc6 {[%clk
0:03:05.1]} 7. Bd3 {[%clk 0:03:09.5]} 7... d5 {[%clk 0:03:06.2]} 8. exd5 {[%clk
0:03:10.7]} 8... O-O {[%clk 0:03:07.1]} 9. O-O {[%clk 0:03:12.2]} 9... cxd5
{[%clk 0:03:07.2]} 10. h3 {[%clk 0:03:13.4]} 10... c6 {[%clk 0:03:06.7]} 11. Qf3
{[%clk 0:03:14.4]} 11... Rb8 {[%clk 0:03:06.3]} 12. Bf4 {[%clk 0:03:12.9]} 12...
Bd6 {[%clk 0:03:05.6]} 13. b3 {[%clk 0:03:10.2]} 13... Rb4 {[%clk 0:02:55.1]}
14. Bxd6 {[%clk 0:03:07.9]} 14... Qxd6 {[%clk 0:02:57]} 15. Ne2 {[%clk
0:02:53.4]} 15... Bd7 {[%clk 0:02:35.2]} 16. Ng3 {[%clk 0:02:52.7]} 16... Re8
{[%clk 0:02:22.8]} 17. c4 {[%clk 0:02:41.2]} 17... Rbb8 {[%clk 0:02:15.7]} 18.
cxd5 {[%clk 0:02:34.9]} 18... cxd5 {[%clk 0:02:16.2]} 19. Rad1 {[%clk
0:02:33.6]} 19... Qe5 {[%clk 0:02:14.3]} 20. Rd2 {[%clk 0:02:11.6]} 20... Qg5
{[%clk 0:01:50.8]} 21. Rfd1 {[%clk 0:02:03.5]} 21... h5 {[%clk 0:01:40.5]} 22.
Bf5 {[%clk 0:01:38.6]} 22... Bc6 {[%clk 0:01:35.3]} 23. Rc2 {[%clk 0:01:32.1]}
23... Ba8 {[%clk 0:01:29.8]} 24. Rd4 {[%clk 0:01:17.2]} 24... Re1+ {[%clk
0:01:08.9]} 25. Nf1 {[%clk 0:01:17.8]} 25... g6 {[%clk 0:00:59.7]} 26. Bd3
{[%clk 0:01:14.3]} 26... Rbe8 {[%clk 0:00:57.4]} 27. Rc7 {[%clk 0:01:03.7]}
27... Qe5 {[%clk 0:00:49.5]} 28. Qg3 {[%clk 0:00:41]} 28... Qxd4 {[%clk
0:00:44.6]} 29. Bxg6 {[%clk 0:00:35.7]} 29... Rxf1+ {[%clk 0:00:42.7]} 30. Kh2
{[%clk 0:00:36.9]} 30... Qe5 {[%clk 0:00:29.3]} 31. Bxf7+ {[%clk 0:00:14.7]}
31... Kf8 {[%clk 0:00:30.8]} 32. Bxe8 {[%clk 0:00:11.2]} 32... Qxg3+ {[%clk
0:00:31.7]} 33. Kxg3 {[%clk 0:00:12.6]} 33... Nxe8 {[%clk 0:00:32.9]} 34. Rxa7
{[%clk 0:00:13.7]} 34... Bc6 {[%clk 0:00:33.4]} 35. a4 {[%clk 0:00:11.7]} 35...
Rb1 {[%clk 0:00:32.9]} 36. Ra6 {[%clk 0:00:12.6]} 36... Rxb3+ {[%clk 0:00:33.4]}
37. Kh4 {[%clk 0:00:11.9]} 37... Rc3 {[%clk 0:00:32.7]} 38. Kxh5 {[%clk
0:00:11.8]} 38... d4 {[%clk 0:00:34.1]} 39. g4 {[%clk 0:00:11.6]} 39... d3
{[%clk 0:00:34.9]} 0-1